Cogmind - Beta 15 @@@ ROGUE MODE // 2025.06.05 @ 02:36:10 Player: Sen Result: Destroyed by HT-58S(R) with Subdweller Shrapnel Launcher Performance ------------- Evolutions (0) 0 Regions Visited (2) 400 Robots Destroyed (11) 55 Value Destroyed (266) 266 Prototype IDs (1) 20 Alien Tech Used (0) 0 Bonus (0) 0 TOTAL SCORE: 741 Bonus ------- None Cogmind --------- Core Integrity 0/250 Matter 290/300 Energy 80/100 System Corruption 1% Temperature Cool (0) Movement Walking (190) Ox1 Location -10/Subcaves Parts ------- > --- POWER (1) -------- (None) > --- PROPULSION (2) --- Aluminum Leg > --- UTILITY (2) ------ Improved Heat Sink Medium Storage Unit > --- WEAPON (2) ------- Light Cannon Mini Grenade Launcher > --- INVENTORY (10) --- Light Ion Engine Light Ion Engine Aluminum Leg High-capacity Matter Pod (200) ECM Suite Improved Medium Laser Improved Medium Laser Improved Medium Laser Peak State ------------ > --- POWER ------------ Light Ion Engine > --- PROPULSION ------- Aluminum Leg Aluminum Leg > --- UTILITY ---------- Heat Sink Medium Storage Unit > --- WEAPON ----------- Improved Medium Laser Improved Medium Laser > --- INVENTORY -------- Aluminum Leg Small Storage Unit High-capacity Matter Pod Improved Medium Laser Light Assault Rifle Light Cannon Mini Grenade Launcher [Rating: 12] Favorites ----------- Power Ion Engine Engine Ion Engine Propulsion Aluminum Leg Leg Aluminum Leg Utility Small Storage Unit Device Improved Heat Sink Storage Small Storage Unit Processor Targeting Computer Weapon Medium Laser Energy Gun Medium Laser Ballistic Gun Light Assault Rifle Ballistic Cannon Light Cannon Build | -11 -10 -10 ------- Run | Yrd Mat Sub Slots Evolved . | . . . Power . | . . . Propulsion . | . . . Utility . | . . . Weapon . | . . . Parts Attached 21 | 6 13 2 Power 3 | 1 2 . Engine 3 | 1 2 . Core . | . . . Reactor . | . . . Propulsion 3 | 2 1 . Treads . | . . . Leg 3 | 2 1 . Wheel . | . . . Hover . | . . . Flight . | . . . Utility 5 | 1 4 . Device 2 | . 2 . Storage 2 | 1 1 . Processor 1 | . 1 . Hackware . | . . . Protection . | . . . Artifact . | . . . Weapon 10 | 2 6 2 Energy Gun 7 | 2 5 . Energy Cannon . | . . . Ballistic Gun 1 | . 1 . Ballistic Cannon 1 | . . 1 Launcher 1 | . . 1 Special Weapon . | . . . Impact Weapon . | . . . Slashing Weapon . | . . . Piercing Weapon . | . . . Special Melee Weapon . | . . . Unidentified Prototypes 1 | . 1 . Parts Lost 2 | . . 2 Power 1 | . . 1 Propulsion . | . . . Utility . | . . . Weapon 1 | . . 1 Highest Loss Streak 2 | . . 2 To Critical Strikes . | . . . Average Backups 5 | . 5 9 Power . | . . 2 Propulsion . | . 1 1 Utility 1 | . 1 2 Weapon 2 | . 2 4 Tool/Special . | . . . Unused Backups 7 | . 2 5 Power 1 | . . 1 Propulsion 3 | . 2 1 Utility 2 | . . 2 Weapon 1 | . . 1 Tool/Special . | . . . Average Slot Usage (%) 99 | . 99 100 Engine 14 | . 14 14 Leg 28 | . 28 28 Device 7 | . 5 14 Storage 14 | . 14 14 Processor 6 | . 7 . Energy Gun 22 | . 24 14 Ballistic Gun 5 | . 3 13 Peak Build Rating 12 | 6 12 10 Average Rating 7 | 4 7 9 On Entrance 5 | . 6 10 Naked Turns . | . . . Heaviest Build 21 | 13 20 21 Greatest Support 20 | 20 20 20 Greatest Overweight (x) 2 | . . 2 Average Overweight (x) . | . . . Largest Inventory Capacity 10 | 8 10 10 Average Capacity 8 | 7 8 10 Most Carried 10 | 2 10 10 Average Carried 5 | . 5 9 Final Capacity 10 | 8 10 10 Final Carried 10 | 2 10 8 Class Distribution -------------------- 77% | Mutant 22% | Scavenger-Mutant Dominant Class ---------------- Mutant | -10/Materials Scavenger-Mutant | -10/Subcaves Resources | -11 -10 -10 ----------- Run | Yrd Mat Sub Matter Collected 629 | 219 367 43 Remotely . | . . . Salvage Created 338 | . 278 60 Parts 25 | . 21 4 Haulers Intercepted . | . . . Recyclers Shooed . | . . . Parts Field Recycled . | . . . Retrieved Matter . | . . . Parts Self-Destructed 7 | . . 7 Prevented 2 | . . 2 Kills | -11 -10 -10 ------- Run | Yrd Mat Sub Combat Hostiles Destroyed 8 | . 7 1 Guns 7 | . 6 1 AOE 1 | . 1 . Classes Destroyed 6 | . 5 1 Builder 2 | . 2 . Operator 1 | . 1 . Swarmer 3 | . 3 . Grunt 3 | . 3 . Sentry 1 | . . 1 Subdweller 1 | . 1 . Best Kill Streak 4 | . 4 1 Combat Bots Only 2 | . 2 1 Max Kills in Single Turn 2 | . 2 1 Gunslinging . | . . . Exploded 1 | . 1 . Melee . | . . . Uniques/NPCs Destroyed . | . . . Combat | -11 -10 -10 -------- Run | Yrd Mat Sub Hostile Shots Fired 47 | . 28 19 Missed 13 | . 10 3 Hits 34 | . 18 16 Projectile 34 | . 18 16 AOE 8 | . 3 5 Critical Strikes 1 | . 1 . Damage Taken 708 | . 313 395 Core 256 | . 121 135 Absorbed by Shields . | . . . Core Remaining (%) 100 | 100 . . Volleys Fired 39 | . 31 8 Largest 2 | . 2 2 Hottest 90 | . 90 60 Shots Fired 77 | . 61 16 Gun 77 | . 61 16 Cannon . | . . . Launcher . | . . . Special . | . . . Kinetic 19 | . 11 8 Thermal 39 | . 39 . Explosive . | . . . Electromagnetic 19 | . 11 8 Robot Hit Streak 12 | . 12 4 Robot Miss Streak 5 | . 5 2 Penetration Max . | . . . Secondary Targets . | . . . Shots Hit Robots 44 | . 35 9 Core Hits 19 | . 17 2 Critical Kills . | . . . Critical Parts Destroyed . | . . . Critical Strikes 2 | . 2 . Burn 2 | . 2 . Melee Attacks . | . . . Impact . | . . . Slashing . | . . . Piercing . | . . . Sneak Attacks . | . . . Combat Hostiles . | . . . Follow-up Attacks . | . . . Damage Inflicted 555 | . 471 84 Guns 518 | . 434 84 Cannons . | . . . Explosions 37 | . 37 . Melee . | . . . Ramming . | . . . Kinetic 104 | . 65 39 Thermal 323 | . 323 . Explosive . | . . . Electromagnetic 128 | . 83 45 Impact . | . . . Slashing . | . . . Piercing . | . . . Highest Corruption 1 | . 1 1 Average Corruption 1 | . 1 1 Corruption Purged . | . . . Corruption Blocked . | . . . Effects 2 | . 1 1 Matter Fused 1 | . . 1 Heat Flow Errors 1 | . 1 . Overload Shots . | . . . Overflow Damage . | . . . Projectiles . | . . . Explosions . | . . . Melee . | . . . Knockbacks . | . . . Impact . | . . . Kinetic . | . . . Secondary . | . . . Self-Inflicted Damage . | . . . Shots . | . . . Rammed . | . . . Targets Rammed . | . . . Kicked . | . . . Crushed . | . . . Highest Temperature 260 | . 260 . Average Temperature 98 | . 98 . Received Heat Transfer 144 | . 81 63 Effects 1 | . 1 . Energy Bleed 1 | . 1 . Siege Activations . | . . . Martial Activations . | . . . Shielding Activations . | . . . Robots Disrupted . | . . . Combat Hostiles . | . . . Robots Corrupted . | . . . Combat Hostiles . | . . . Parts Fried . | . . . Impact Corruptions . | . . . Robots Melted . | . . . Combat Hostiles . | . . . Parts Melted 4 | . 4 . Heat Transferred 930 | . 930 . Parts Sabotaged . | . . . Parts Stolen . | . . . Parts Stripped . | . . . Power Chain Reactions 1 | . 1 . Alert | -11 -10 -10 ------- Run | Yrd Mat Sub Maximum Alert Level . | . . . Low Security (%) 100 | 100 100 . Level 1 . | . . . Level 2 . | . . . Level 3 . | . . . Level 4 . | . . . Level 5 . | . . . High Security . | . . . Max Security . | . . . Peak Influence 110 | . 110 . Initial . | . . . Average 34 | . 38 . Influence Increases 234 | . 214 20 Destroy 0b10 Robot/C 140 | . 120 20 Destroy 0b10 Robot/NC 15 | . 15 . Destroy Leader 30 | . 30 . Disable Machine 15 | . 15 . Destroy Structure 4 | . 4 . Lose Combat Pursuer 30 | . 30 . Influence Decreases 234 | . 182 52 Entered New Map 16 | . . 16 Time Decay 218 | . 182 36 Squads Dispatched 3 | . 3 . Investigation . | . . . Extermination . | . . . Reinforcement 3 | . 3 . Assault . | . . . Garrison . | . . . Intercept . | . . . Searches Triggered . | . . . Construction Impeded . | . . . Haulers Reinforced . | . . . Active Scanning Responses . | . . . Cargo Convoy Interrupts . | . . . Stealth | -11 -10 -10 --------- Run | Yrd Mat Sub Distress Signals 2 | . 2 . Communications Jammed . | . . . Distress Signals . | . . . Times Spotted 20 | . 18 2 Peak Tracking Total 4 | . 4 1 Tactical Retreats 3 | . 3 . Traps | -11 -10 -10 ------- Run | Yrd Mat Sub Traps Triggered 1 | . 1 . Indirectly . | . . . Trap Hack Attempts . | . . . Triggered . | . . . Disarmed . | . . . Reprogrammed . | . . . Reused . | . . . Traps Extracted . | . . . Installed . | . . . Triggered . | . . . Machines | -11 -10 -10 ---------- Run | Yrd Mat Sub Machines Disabled 1 | . 1 . Max in Single Turn 1 | . 1 . Machines Repaired . | . . . Machines Dismantled . | . . . Machines Sabotaged . | . . . Overloaded Fab Kills . | . . . Hacking | -11 -10 -10 --------- Run | Yrd Mat Sub Machines Accessed 2 | . 2 . Terminals 2 | . 2 . Fabricators . | . . . Repair Stations . | . . . Recycling Units . | . . . Scanalyzers . | . . . Garrison Access . | . . . Total Hacks 3 | . 3 . Successful 1 | . 1 . Failed 2 | . 2 . Catastrophic . | . . . Database Lockouts . | . . . Manual . | . . . Terminals 3 | . 3 . Fabricators . | . . . Repair Stations . | . . . Recycling Units . | . . . Scanalyzers . | . . . Garrison Access . | . . . Terminal Hacks 1 | . 1 . Emergency Access Points 1 | . 1 . Fabricator Hacks . | . . . Repair Station Hacks . | . . . Recycling Unit Hacks . | . . . Scanalyzer . | . . . Garrison Access Hacks . | . . . Unauthorized Hacks . | . . . Terminals . | . . . Fabricators . | . . . Repair Stations . | . . . Recycling Units . | . . . Scanalyzers . | . . . Garrison Access . | . . . Data Cores Recovered . | . . . Used . | . . . Hacking Detections 1 | . 1 . Full Trace Events . | . . . Feedback Events . | . . . Feedback Blocked . | . . . Robot Schematics Acquired . | . . . Robots Built . | . . . Authchips . | . . . Time . | . . . Total Robot Build Rating . | . . . Part Schematics Acquired . | . . . Parts Built . | . . . Authchips . | . . . Time . | . . . Total Part Build Rating . | . . . Parts Repaired . | . . . Time . | . . . Parts Recycled . | . . . Recycled Matter . | . . . Retrieved Matter . | . . . Retrieved Components . | . . . Parts Scanalyzed . | . . . Part Schematics Acquired . | . . . Parts Damaged . | . . . Bothacking | -11 -10 -10 ------------ Run | Yrd Mat Sub Used RIF Installer . | . . . Robots Hacked . | . . . Non-combat . | . . . Combat . | . . . Robot Hacks Applied . | . . . Relay Couplers Released . | . . . Fabnet Peak Effective % . | . . . Robots Rewired . | . . . Allies Hacked . | . . . Hacks Repelled . | . . . Allies | -11 -10 -10 -------- Run | Yrd Mat Sub Total Allies . | . . . Largest Group . | . . . Highest-Rated Group . | . . . Highest-Rated Ally . | . . . Total Orders . | . . . Ally Attacks . | . . . Total Damage . | . . . Kills . | . . . Allies Corrupted . | . . . Allies Melted . | . . . Intel | -11 -10 -10 ------- Run | Yrd Mat Sub Active Infowar (turns) . | . . . Robot Analysis Total . | . . . Derelict Logs Recovered . | . . . Drone Launches . | . . . Drone Recoveries . | . . . Exploration | -11 -10 -10 ------------- Run | Yrd Mat Sub Turns Passed 788 | 72 567 149 Spaces Moved 502 | 55 348 99 Core 6 | 6 . . Treads . | . . . Legs 496 | 49 348 99 Wheels . | . . . Hover . | . . . Flight . | . . . Fastest Speed 50 | 50 120 120 Average Speed 120 | 112 120 124 Slowest Speed 260 | 120 120 260 Overloaded Moves . | . . . Propulsion Burnouts . | . . . Robots Hopped . | . . . Potential Cave-ins . | . . . Cave-ins Triggered . | . . . Exploration Rate (%) 23 | 4 54 12 Regions Visited 2 Branch Regions 1 Pre-discovered Areas . | . . . Known Exits Taken . | . . . Unknown Exits Taken 2 | 1 1 . Scrap Searched 2 | . . 2 Spaces Dug . | . . . Terrain Destroyed 3 | . 3 . Melee . | . . . Projectile . | . . . AOE 3 | . 3 . Terrain Rammed . | . . . Walls Destroyed . | . . . Machines Disabled . | . . . Actions | -11 -10 -10 --------- Run | Yrd Mat Sub Total 610 | 62 437 111 Wait 20 | . 20 . Move 500 | 54 347 99 Hop . | . . . Pick Up 17 | 2 15 . Fast Attach 10 | 6 4 . Attach 1 | . . 1 Detach . | . . . Swap 10 | . 9 1 Drop 13 | . 11 2 Fire 39 | . 31 8 Melee . | . . . Ram . | . . . Kick . | . . . Crush . | . . . Escape Stasis . | . . . Rewire . | . . . Trap . | . . . Miscellaneous . | . . . Route ------- -11/Scrapyard -10/Materials -10/Subcaves History --------- Turn | Location | Event 4 | -11/Scrapyard | Discovered new exit (range 15) 73 | -11/Scrapyard | Entered Materials 316 | -10/Materials | Build established: Mutant 573 | -10/Materials | Derelicts attacked the area 603 | -10/Materials | Discovered new exit (range 14) 640 | -10/Materials | Entered Subcaves 665 | -10/Subcaves | Core integrity fell below 50% 782 | -10/Subcaves | Disturbed a concealed Subdweller 784 | -10/Subcaves | Core integrity fell below 20% 789 | -10/Subcaves | Destroyed by HT-58S(R) with Subdweller Shrapnel Launcher Last Messages --------------- mechanism malfunctions. 00681_ Acquired 23 matter. 00690_ Subatomizers dissect the Sub. Optics. 00691_ Corrupted Imp. Ion Engine fries itself beyond repair. 00757_ System corrupted: Matter fused (-10). 00773_ Searching scrap... 00773_ Found Sub. Shrapnel Launcher. 00773_ Found Sub. Machine Gun. 00773_ Found 36 Matter. 00774_ Acquired 10 matter. 00776_ Dropped Lgt. Assault Rifle. 00780_ Searching scrap... 00780_ Found Mak. Leg. 00780_ Found 44 Matter. 00782_ HT-58S(R) angrily emerges from the Twisted Machinery. 00782_ Dropped Aluminum Leg. 00783_ EM Pulse Gun destroyed. 00785_ Ion Engine destroyed. Map ----- +----------------------------------------------------+ | ?????????????????????????????????????????????????? | | ?????????????????????????????????????????????????? | | ?????????????????????????????????????????????????? | | ?????????????????????????????????????????????????? | | ?????????????????????????????????????????????????? | | ?????????????????????????????????????????????????? | | ?????????????????????????????????????????????????? | | ?????????????????????????????????????????????????? | | ?????????????????????????????????????????????????? | | ?????????????????????????????????????????????????? | | ?????????????????????????????????????????????????? | | ????????????????????? ?????? #??????????????????? | | ????????????????????? ???? #?????????????????? | | ????????????????????? ???? #?????????????????? | | ?????????????????????# ???? ##??# ???????????? | | ??????????????#??????# ???? ### ???????????? | | ?????????????## ????## ???# ???????????? | | ?????????????# ??## #?? ????????????? | | ?????????????# ## ?? ?????????????? | | ?????????????# ## ??????????????? | | ??????????????? ; ????????????????? | | ????????????????? ?????????????????? | | ??????????????????? ; ##?????????????????? | | ????????????????????#; #?????????????????? | | ???????????????????### ;#?????????????????? | | ???????????????????# ; @% #??????????????????? | | ????????????? ; $#??????????????????? | | ????????????# R #??????????????????? | | ????????????# ] #??????????????????? | | ???????????# ;;; [ ###????????????????? | | ???????????? ## < #####????????????? | | ???????????? ## #????????????? | | ???????????? #?# #????????????? | | ????????????? ##??# ####????????????? | | ?????????????# #????## #####???????????? | | ??????????????# ??????### #???# ??????? | | ??????????????## ?????????# ##?# ????? | | ?????????????????????###??## ## #?????? | | ?????????????????????# ##?## ##????? | | ???????????????????#### ##?## #??? | | ???????????????????# ## #### #??? | | ??????????????????## # # ## ???? | | ?????????????????## ### #?????? | | ??????????????#### # #??? ##?????? | | ?????????????## ### ## ##????????????? | | ?##?????????## ###### #?????????????? | | ## ?????????# ### ##????###??????? | | # ????????# ####### ##?????? | | ????????# ## ##????? | | ????????## & ## # #????? | +----------------------------------------------------+ Best States ------------- Heat Dissipation 39 Energy Generation 10 Energy Capacity 250 Matter Stores 300 Matter Capacity 300 Sight Range 16 Terrain Scan Density 10 Evasion (%) 55 Targeting Accuracy 5 Item Schematics ----------------- None Robot Schematics ------------------ None Fabricated ------------ Nothing Repaired ---------- Nothing Alien Tech Used ----------------- None Achievements -------------- None Challenges ------------ None Game ------ Seed CobblerThermicProcessor Manual? 0 Play Time 00:17:18 Cumulative 44.5 hours Start 2025.06.05 @ 02:10:08 End 2025.06.05 @ 02:36:10 Sessions 1 Manual Loads 0 Difficulty Rogue Special Mode None Game No. 43 Rogue 43 Adventurer 0 Explorer 0 Win Type - Total 0 Types 0/0/0/0/0/0/0/0/0/0 Lore% 25 Gallery% 30 Achievement% 28 Wizard Run 0 Options --------- Layout 1 ASCII 1 Keyboard 0 Movement Numpad Keybinds 0 Fullscreen 1 Font 24/Smallcaps Map View 50x35 Zoom Use 0% Tactical HUD 1 Map Filters NONE Filters NONE Steam 1 RUN: 43986097-cde8-4671-a5dc-11074f8b40ee